bitfinex-derivatives/quotes_BTCF0:USTF0_20251120
["timestamp","ask_amount","ask_price","bid_price","bid_amount"]
[1763631762516,0.54634146,91784.0,91783.0,0.2531643]
[1763631762922,0.54634146,91784.0,91783.0,0.14411]
[1763631763816,0.50430146,91784.0,91783.0,0.14411]
[1763631764016,0.14350146,91784.0,91783.0,0.14411]
[1763631764820,0.18554146,91784.0,91783.0,0.07004]
[1763631765017,0.18554146,91784.0,91783.0,0.14411]
[1763631765217,0.18554146,91784.0,91783.0,0.07004]
[1763631765517,0.18554146,91784.0,91783.0,0.14411]
[1763631767619,0.18554146,91784.0,91783.0,0.2531643]
[1763631768020,0.14114,91776.0,91775.0,0.14840922]
[1763631768219,0.18537803,91776.0,91775.0,0.14411]
[1763631768433,0.18537803,91776.0,91775.0,0.22247922]
[1763631768619,0.14333803,91776.0,91775.0,0.22247922]
[1763631769327,0.07134803,91776.0,91775.0,0.22247922]
[1763631770020,0.14333803,91776.0,91775.0,0.22247922]
[1763631770417,0.00219803,91776.0,91775.0,0.22247922]
[1763631770612,0.07134803,91776.0,91775.0,0.22247922]
[1763631770818,0.14333803,91776.0,91775.0,0.25247922]
[1763631773027,0.06931343,91784.0,91783.0,0.2531643]
[1763631773225,0.14130343,91784.0,91783.0,0.6139643]
[1763631773423,0.00016343,91784.0,91783.0,0.6139643]
[1763631773727,0.06931343,91784.0,91783.0,0.6139643]
[1763631774127,0.14130343,91784.0,91783.0,0.6139643]
[1763631774328,0.14350146,91784.0,91783.0,0.6139643]
[1763631776934,0.07151146,91784.0,91783.0,0.6139643]
[1763631777325,0.14350146,91784.0,91783.0,0.6139643]
[1763631779536,0.14350146,91784.0,91779.0,0.07836922]
[1763631779537,0.14114,91780.0,91779.0,0.33153762]
[1763631779734,0.14333803,91780.0,91779.0,0.1790984]
[1763631780038,0.14333803,91780.0,91779.0,0.2531684]
[1763631781851,0.07134803,91780.0,91779.0,0.2531684]
[1763631782054,0.00219803,91780.0,91779.0,0.2531684]
[1763631782251,0.00016343,91784.0,91783.0,0.1090543]
[1763631782454,0.06797146,91784.0,91783.0,0.2421143]
[1763631782654,0.14036146,91784.0,91783.0,0.2421143]
[1763631782858,0.14036146,91784.0,91783.0,0.13306]
[1763631783752,0.16612505,91784.0,91783.0,0.13306]
[1763631784257,0.138,91776.0,91775.0,0.2721238]
[1763631784456,0.14019803,91776.0,91775.0,0.2721238]
[1763631787546,0.17771803,91776.0,91775.0,0.2721238]
[1763631793761,0.17771803,91776.0,91775.0,0.03]
[1763631794853,0.17771803,91776.0,91775.0,0.16306]
[1763631795052,0.14019803,91776.0,91775.0,0.241587]
[1763631795453,0.14019803,91776.0,91775.0,0.16306]
[1763631795757,0.00219803,91776.0,91775.0,0.16306]
[1763631796256,0.3608,91781.0,91780.0,0.13306]
[1763631796451,0.3608,91781.0,91780.0,0.2421178]
[1763631796762,0.36299803,91781.0,91780.0,0.2421178]
[1763631797164,0.00219803,91781.0,91780.0,0.2421178]
[1763631797759,0.3608,91789.0,91783.0,0.2421143]
[1763631798959,0.14036146,91784.0,91783.0,0.2421143]
[1763631800559,0.14036146,91784.0,91783.0,0.13306]
[1763631801858,0.138,91780.0,91779.0,0.42217]
[1763631802056,0.14019803,91780.0,91779.0,0.49386]
[1763631802656,0.00219803,91780.0,91779.0,0.49386]
[1763631802855,0.06780803,91780.0,91779.0,0.49386]
[1763631803057,0.14019803,91780.0,91779.0,0.49386]
[1763631807174,0.00219803,91780.0,91779.0,0.49386]
[1763631807367,0.06780803,91780.0,91779.0,0.49386]
[1763631807671,0.00016343,91784.0,91783.0,0.2296543]
[1763631808467,0.05821343,91784.0,91783.0,0.2296543]
[1763631808666,0.11944146,91784.0,91783.0,0.2296543]
[1763631809363,0.11944146,91784.0,91783.0,0.2596543]
[1763631811371,0.00236146,91784.0,91783.0,0.2596543]
[1763631811571,0.41885,91798.0,91797.0,0.2296376]
[1763631811768,0.41177222,91798.0,91797.0,0.2296376]
[1763631811968,0.47080222,91798.0,91797.0,0.2296376]
[1763631812765,0.47180222,91798.0,91797.0,0.2296376]
[1763631813765,0.47280222,91798.0,91797.0,0.2296376]
[1763631819270,0.06224803,91798.0,91797.0,0.2296376]
[1763631819466,0.1133,91791.0,91790.0,0.57871]
[1763631819671,0.11549803,91791.0,91790.0,0.11271]
[1763631820080,0.00219803,91791.0,91790.0,0.11271]
[1763631820378,0.11549803,91791.0,91790.0,0.11271]
[1763631821070,0.11649803,91791.0,91790.0,0.11271]
[1763631821773,0.1133,91789.0,91788.0,0.10921173]
[1763631821973,0.1133,91783.0,91782.0,0.11271]
[1763631822174,0.1133,91783.0,91782.0,0.2557155]
[1763631822175,0.11549803,91783.0,91782.0,0.2557155]
[1763631822373,0.00219803,91783.0,91782.0,0.6165155]
[1763631823771,0.4751,91791.0,91790.0,0.2217559]
[1763631823973,0.47729803,91791.0,91790.0,0.2217559]
[1763631824278,0.47629803,91791.0,91790.0,0.05498]
[1763631824473,0.1133,91783.0,91782.0,0.6165155]
[1763631824674,0.05911803,91783.0,91782.0,0.6165155]
[1763631824874,0.00219803,91783.0,91782.0,0.6165155]
[1763631825174,0.4741,91791.0,91790.0,0.221756]
[1763631825381,0.47729803,91791.0,91790.0,0.221756]
[1763631826583,0.47729803,91791.0,91790.0,0.11271]
[1763631827780,0.47629803,91791.0,91790.0,0.11271]
[1763631829077,0.47729803,91791.0,91790.0,0.11271]
[1763631829873,0.42091803,91791.0,91790.0,0.11271]
[1763631830078,0.001,91791.0,91790.0,0.47351]
[1763631831186,0.1143,91791.0,91790.0,0.47351]
[1763631832187,0.11649803,91791.0,91790.0,0.47351]
[1763631834291,0.1143,91791.0,91790.0,0.47351]
[1763631834492,0.001,91791.0,91790.0,0.47351]
[1763631834687,0.41772,91799.0,91798.0,0.2217464]
[1763631834889,0.47426343,91807.0,91806.0,0.2556869]
[1763631835192,0.50221784,91807.0,91806.0,0.14666]
[1763631835587,0.50221784,91807.0,91806.0,0.11271]
[1763631836085,0.1133,91803.0,91802.0,0.2217409]
[1763631836282,0.11549803,91803.0,91802.0,0.2217409]
[1763631836887,0.14125683,91803.0,91782.0,0.4732556]
[1763631837191,0.11549803,91803.0,91802.0,0.11271]
[1763631837385,0.14125875,91803.0,91802.0,0.11271]
[1763631837586,0.14225875,91803.0,91802.0,0.11271]
[1763631837985,0.14225875,91803.0,91802.0,0.2217417]
[1763631838382,0.14325875,91803.0,91802.0,0.2217417]
[1763631839589,0.14225875,91803.0,91802.0,0.2217417]
[1763631839791,0.14325875,91803.0,91802.0,0.2217417]
[1763631840594,0.14325875,91803.0,91802.0,0.11271]
[1763631840788,0.01475,91800.0,91790.0,0.3608]
[1763631840997,0.11549803,91791.0,91790.0,0.524826]
[1763631841198,0.11549803,91791.0,91790.0,0.582556]
[1763631843800,0.11549803,91791.0,91790.0,0.524826]
[1763631844000,0.11549803,91791.0,91790.0,0.581916]
[1763631846699,0.11549803,91791.0,91790.0,0.3608]
[1763631846901,0.11549803,91791.0,91790.0,0.41761]
[1763631847202,0.11549803,91791.0,91790.0,0.4747]
[1763631847398,0.11549803,91791.0,91790.0,0.41761]
[1763631847700,0.11549803,91791.0,91790.0,0.4747]
[1763631848097,0.11549803,91791.0,91782.0,0.03395]
[1763631848098,0.1090459,91790.0,91788.0,0.109048]
[1763631848301,0.11594803,91789.0,91788.0,0.109048]
[1763631848599,0.11594803,91789.0,91788.0,0.165858]
[1763631849103,0.11594803,91789.0,91788.0,0.222948]
[1763631852401,0.11375,91780.0,91779.0,0.1139]
[1763631852700,0.11594803,91780.0,91779.0,0.1139]
[1763631854002,0.47455,91791.0,91790.0,0.2229459]
[1763631854304,0.58190803,91791.0,91790.0,0.2229459]
[1763631855101,0.58190803,91791.0,91787.0,0.1090487]
[1763631855301,0.11375,91783.0,91782.0,0.05681]
[1763631855507,0.11594803,91783.0,91782.0,0.1139]
[1763631855810,0.11594803,91783.0,91782.0,0.1476]
[1763631857109,0.00219803,91783.0,91782.0,0.1476]
[1763631859307,0.05650803,91783.0,91782.0,0.1476]
[1763631859908,0.05650803,91783.0,91782.0,0.2566554]
[1763631860206,0.11594803,91783.0,91782.0,0.2566554]
[1763631861808,0.11594803,91783.0,91782.0,0.1090554]
[1763631862109,0.13322805,91783.0,91767.0,0.1139]
[1763631862303,0.12553884,91780.0,91777.0,0.0337]
[1763631862508,0.36299803,91778.0,91777.0,0.1476]
[1763631862704,0.38870805,91778.0,91777.0,0.1476]
[1763631863717,0.46835803,91778.0,91777.0,0.1476]
[1763631864015,0.36299803,91778.0,91777.0,0.1476]
[1763631864407,0.46835803,91778.0,91777.0,0.1476]
[1763631867002,0.36299803,91778.0,91777.0,0.1476]
[1763631867208,0.46835803,91778.0,91777.0,0.1476]
[1763631868115,0.46835803,91778.0,91777.0,0.09051]
[1763631868508,0.46835803,91778.0,91777.0,0.14994]
[1763631869913,0.36299803,91778.0,91777.0,0.14994]
[1763631870210,0.46835803,91778.0,91777.0,0.14994]
[1763631872616,0.46835803,91778.0,91777.0,0.0337]
[1763631873013,0.1090732,91767.0,91766.0,0.12217243]
[1763631873222,0.21671123,91767.0,91766.0,0.12217243]
[1763631873618,0.10763803,91767.0,91766.0,0.12217243]
[1763631877722,0.00219803,91767.0,91766.0,0.12217243]
[1763631877927,0.10763803,91767.0,91766.0,0.12217243]
[1763631880322,0.10763803,91767.0,91766.0,0.06114243]
[1763631880827,0.10763803,91767.0,91766.0,0.12217243]
[1763631882931,0.00219803,91767.0,91766.0,0.12217243]
[1763631883229,0.10767803,91767.0,91766.0,0.12217243]
[1763631885719,0.10763803,91767.0,91766.0,0.12217243]
[1763631886634,0.00219803,91767.0,91766.0,0.12217243]
[1763631887033,0.10763803,91767.0,91766.0,0.12217243]
[1763631888837,0.10763803,91767.0,91766.0,0.06114243]
[1763631890639,0.00219803,91767.0,91766.0,0.12217243]
[1763631890829,0.10763803,91767.0,91766.0,0.12217243]
[1763631891236,0.1344278,91767.0,91766.0,0.12217243]
[1763631893232,0.1354278,91767.0,91766.0,0.12217243]
[1763631893632,0.1364278,91767.0,91766.0,0.12217243]
[1763631894029,0.1364278,91767.0,91766.0,0.00027243]
[1763631894229,0.1364278,91767.0,91766.0,0.12217243]
[1763631894835,0.1364278,91767.0,91766.0,0.06114243]
[1763631895038,0.1090744,91766.0,91763.0,0.0337]
[1763631895240,0.00219803,91764.0,91763.0,0.09457]
[1763631895440,0.0289878,91764.0,91763.0,0.1556]
[1763631895939,0.1090839,91758.0,91757.0,0.03]
[1763631896136,0.60439951,91758.0,91757.0,0.01802557]
[1763631896838,0.60439951,91758.0,91757.0,0.07889557]
[1763631897032,0.60443951,91758.0,91757.0,0.13992557]
[1763631897239,0.60543951,91758.0,91757.0,0.13992557]
[1763631897638,0.60643951,91758.0,91757.0,0.13992557]
[1763631898141,0.50099951,91758.0,91757.0,0.13992557]
[1763631898345,0.60643951,91758.0,91757.0,0.13992557]
[1763631899435,0.50099951,91758.0,91757.0,0.13992557]
[1763631899636,0.60643951,91758.0,91757.0,0.13992557]
[1763631900231,0.50099951,91758.0,91757.0,0.13992557]
[1763631900540,0.60639951,91758.0,91757.0,0.07889557]
[1763631900934,0.60639951,91758.0,91757.0,0.13992557]
[1763631901744,0.60639951,91758.0,91757.0,0.07889557]
[1763631902049,0.60639951,91758.0,91757.0,0.13992557]
[1763631902242,0.60639951,91758.0,91757.0,0.13584557]
[1763631902443,0.60639951,91758.0,91757.0,0.01802557]
[1763631902639,0.39191561,91758.0,91757.0,0.13171557]
[1763631902843,0.49731561,91758.0,91757.0,0.13171557]
[1763631903644,0.47039803,91758.0,91757.0,0.13171557]
[1763631903835,0.46939803,91758.0,91757.0,0.13171557]
[1763631904645,0.1090898,91753.0,91752.0,0.03603]
[1763631904836,0.21672783,91753.0,91752.0,0.14972]
[1763631905945,0.00219803,91753.0,91752.0,0.14972]
[1763631906745,0.10763803,91753.0,91752.0,0.14972]
[1763631907645,0.00219803,91753.0,91752.0,0.14972]
[1763631907951,0.10759803,91753.0,91752.0,0.14972]
[1763631908244,0.21668783,91753.0,91752.0,0.14972]
[1763631911247,0.11128783,91753.0,91752.0,0.14972]
[1763631911551,0.10763803,91753.0,91752.0,0.14972]
[1763631913650,0.13452573,91753.0,91752.0,0.14972]
[1763631913846,0.13452573,91753.0,91740.0,0.14972]
[1763631913847,0.1091041,91741.0,91740.0,0.14972]
[1763631914147,0.57754213,91741.0,91740.0,0.14972]
[1763631915041,0.57854213,91741.0,91740.0,0.14972]
[1763631915852,0.47310213,91741.0,91740.0,0.14972]
[1763631916038,0.57854213,91741.0,91740.0,0.14972]
[1763631916746,0.57954213,91741.0,91740.0,0.14972]
[1763631917341,0.57854213,91741.0,91740.0,0.14972]
[1763631917538,0.36499803,91741.0,91740.0,0.14972]
[1763631917739,0.47043803,91741.0,91740.0,0.14972]
[1763631918145,0.46943803,91741.0,91740.0,0.14972]
[1763631918341,0.47043803,91741.0,91740.0,0.14972]
[1763631918942,0.46943803,91741.0,91740.0,0.14972]
[1763631919246,0.47043803,91741.0,91740.0,0.14972]
[1763631919550,0.36499803,91741.0,91740.0,0.14972]
[1763631919757,0.47043803,91741.0,91740.0,0.14972]
[1763631920453,0.36399803,91741.0,91740.0,0.14972]
[1763631920657,0.47039803,91741.0,91740.0,0.14972]
[1763631920953,0.36499803,91741.0,91740.0,0.14972]
[1763631921157,0.47039803,91741.0,91740.0,0.14972]
[1763631922142,0.57950213,91741.0,91738.0,0.1091075]
[1763631922345,0.47039803,91741.0,91740.0,0.11369]
[1763631923654,0.36499803,91741.0,91740.0,0.11369]
[1763631923853,0.47039803,91741.0,91740.0,0.11369]
[1763631924450,0.36499803,91741.0,91740.0,0.11369]
[1763631924654,0.47039803,91741.0,91740.0,0.11369]
[1763631926149,0.36499803,91741.0,91740.0,0.11369]
[1763631926350,0.47039803,91741.0,91740.0,0.11369]
[1763631926557,0.3608,91751.0,91750.0,0.11369]
[1763631926759,0.49383217,91751.0,91750.0,0.11588803]
[1763631926956,0.61094217,91751.0,91750.0,0.11588803]
[1763631927353,0.49383217,91751.0,91750.0,0.11588803]
[1763631927551,0.55027217,91751.0,91750.0,0.11588803]
[1763631927752,0.60905217,91751.0,91750.0,0.11588803]
[1763631928349,0.61005217,91751.0,91750.0,0.11588803]
[1763631929249,0.61105217,91751.0,91750.0,0.11588803]
[1763631930157,0.50565217,91751.0,91750.0,0.11588803]
[1763631930356,0.61105217,91751.0,91750.0,0.22498143]
[1763631932160,0.61105217,91751.0,91750.0,0.11588803]
[1763631932464,0.61005217,91751.0,91750.0,0.05893803]
[1763631932848,0.61105217,91751.0,91750.0,0.00219803]
[1763631933050,0.61105217,91751.0,91750.0,0.06193803]
[1763631934452,0.61105217,91751.0,91750.0,0.12286803]
[1763631935558,0.50565217,91751.0,91750.0,0.12286803]
[1763631935760,0.61105217,91751.0,91750.0,0.12286803]
[1763631938560,0.39043217,91751.0,91750.0,0.12286803]
[1763631938964,0.19194217,91751.0,91750.0,0.12286803]
[1763631939155,0.13499217,91751.0,91750.0,0.12286803]
[1763631939656,0.02963217,91751.0,91750.0,0.12286803]
[1763631939862,0.13499217,91751.0,91750.0,0.12286803]
[1763631940959,0.25011217,91751.0,91750.0,0.12286803]
[1763631941861,0.25011217,91751.0,91750.0,0.00219803]
[1763631944065,0.25011217,91751.0,91750.0,0.12286803]
[1763631944857,0.13499217,91751.0,91750.0,0.12286803]
[1763631945459,0.02963217,91751.0,91750.0,0.12286803]
[1763631945658,0.02963217,91751.0,91741.0,0.1091029]
[1763631945659,0.11512,91727.0,91724.0,0.0782862]
[1763631945865,0.11512,91727.0,91726.0,0.06193804]
[1763631945866,0.60895018,91727.0,91726.0,0.06193804]
[1763631946164,0.60895018,91727.0,91726.0,0.12286804]
[1763631946362,0.60895018,91727.0,91726.0,0.48366804]
[1763631946862,0.50351018,91727.0,91726.0,0.48366804]
[1763631947064,0.60895018,91727.0,91726.0,0.48366804]
[1763631947266,0.58219477,91727.0,91726.0,0.48366804]
[1763631947456,0.60893336,91727.0,91726.0,0.36080001]
[1763631948164,0.69827817,91727.0,91706.0,0.3608]
[1763631948366,0.05695,91707.0,91706.0,0.48147]
[1763631948559,0.24097853,91716.0,91715.0,0.12067]
[1763631948757,0.2214562,91716.0,91715.0,0.12286803]
[1763631948967,0.5822562,91716.0,91715.0,0.12286803]
[1763631949761,0.4768162,91716.0,91715.0,0.12286803]
[1763631950064,0.3616962,91716.0,91715.0,0.12286803]
[1763631950267,0.4768162,91716.0,91715.0,0.12286803]
[1763631951360,0.5240862,91716.0,91715.0,0.12286803]
[1763631951765,0.5822562,91716.0,91715.0,0.12286803]
[1763631952464,0.4768162,91716.0,91715.0,0.12286803]
[1763631953064,0.3616962,91716.0,91715.0,0.12286803]
[1763631953869,0.0008962,91716.0,91715.0,0.12286803]
[1763631954169,0.0008962,91716.0,91715.0,0.23200293]
[1763631954471,0.0008962,91716.0,91715.0,0.26200293]
[1763631954856,0.00016353,91716.0,91715.0,0.26200293]
[1763631960768,0.0001021,91727.0,91726.0,0.2297918]
[1763631960968,0.0001021,91727.0,91726.0,0.23198983]
[1763631962663,0.00016353,91736.0,91735.0,0.2715511]
[1763631962868,0.00016353,91736.0,91735.0,0.27374913]
[1763631964371,0.1348362,91736.0,91735.0,0.27374913]
[1763631964571,0.0008962,91736.0,91735.0,0.27374913]
[1763631965879,0.1348362,91736.0,91735.0,0.27374913]
[1763631966067,0.0008962,91736.0,91735.0,0.27374913]
[1763631966880,0.2402762,91736.0,91735.0,0.00219803]
[1763631967076,0.1348362,91736.0,91735.0,0.07735803]
[1763631967278,0.2402762,91736.0,91735.0,0.18005803]
[1763631968181,0.2402762,91736.0,91735.0,0.13551803]
[1763631969269,0.2402762,91736.0,91735.0,0.07735803]
[1763631969470,0.2402762,91736.0,91735.0,0.13551803]
[1763631969665,0.13394,91722.0,91721.0,0.2869877]
[1763631969879,0.13467267,91722.0,91721.0,0.28918573]
[1763631970177,0.24379917,91722.0,91721.0,0.28918573]
[1763631970378,0.24379917,91722.0,91721.0,0.18005803]
[1763631970972,0.24379917,91722.0,91715.0,0.03]
[1763631970973,0.2430713,91718.0,91717.0,0.07532353]
[1763631971279,0.71004397,91718.0,91717.0,0.00016353]
[1763631971487,0.13394,91698.0,91697.0,0.11387246]
[1763631971778,0.24011267,91698.0,91697.0,0.14023419]
[1763631972168,0.24011267,91698.0,91697.0,0.24939049]
[1763631972879,0.13467267,91698.0,91697.0,0.25039049]
[1763631973380,0.00073267,91698.0,91697.0,0.25039049]
[1763631973775,0.13467267,91698.0,91697.0,0.25039049]
[1763631974682,0.00016353,91707.0,91706.0,0.2424656]
[1763631974884,0.0008962,91707.0,91706.0,0.24466363]
[1763631975082,0.1348362,91707.0,91706.0,0.24466363]
[1763631975268,0.1348362,91707.0,91706.0,0.13551803]
[1763631976279,0.0008962,91707.0,91706.0,0.13551803]
[1763631976580,0.00016353,91707.0,91706.0,0.13551803]
[1763631977370,0.54268,91726.0,91725.0,0.2424429]
[1763631977575,0.13394,91707.0,91706.0,0.13432]
[1763631977784,0.00219803,91707.0,91706.0,0.2434656]
[1763631977979,0.07851803,91707.0,91706.0,0.2434656]
[1763631978278,0.07851803,91707.0,91706.0,0.13432]
[1763631978782,0.3608,91710.0,91709.0,0.13332]
[1763631978987,0.36299803,91710.0,91709.0,0.13332]
[1763631979780,0.00016353,91716.0,91709.0,0.13332]
[1763631979980,0.00016353,91716.0,91715.0,0.2424548]
[1763631980582,0.49710156,91716.0,91699.0,0.10568]
[1763631980785,0.3608,91701.0,91700.0,0.29048071]
[1763631980979,0.24127,91701.0,91700.0,0.13332]
[1763631981284,0.24127,91701.0,91700.0,0.242472]
[1763631981481,0.24346803,91701.0,91700.0,0.242472]
[1763631981783,0.37740803,91701.0,91700.0,0.242472]
[1763631981978,0.37740803,91701.0,91700.0,0.07516]
[1763631982279,0.13394,91694.0,91693.0,0.10925878]
[1763631982484,0.13394,91694.0,91680.0,0.15716071]
[1763631982485,0.13394,91687.0,91680.0,0.09805062]
[1763631982677,0.49693803,91687.0,91686.0,0.13359267]
[1763631983578,0.49703528,91687.0,91686.0,0.13359267]
[1763631984084,0.49703528,91687.0,91686.0,0.13459267]
[1763631984781,0.49703528,91687.0,91686.0,0.00127267]
[1763631985082,0.60287528,91687.0,91686.0,0.13459267]
[1763631985282,0.60287528,91687.0,91686.0,0.05583537]
[1763631985483,0.13394,91677.0,91676.0,0.15619]
[1763631985676,0.49693803,91677.0,91676.0,0.15619]
[1763631985879,0.36299803,91677.0,91676.0,0.15619]
[1763631986493,0.37740803,91677.0,91676.0,0.03]
[1763631986687,0.37740803,91677.0,91649.0,0.3608]
[1763631986688,0.13394,91663.0,91649.0,0.3608]
[1763631986988,0.13394,91663.0,91609.0,0.0602945]
[1763631986989,0.18111,91647.0,91643.0,0.13727087]
[1763631987186,0.12568803,91647.0,91630.0,0.15716071]
[1763631987386,0.18330803,91647.0,91646.0,0.26041279]
[1763631987585,0.26711803,91647.0,91646.0,0.26041279]
[1763631987785,0.26711803,91647.0,91646.0,0.13034279]
[1763631988382,0.26711803,91647.0,91646.0,0.00027279]
[1763631988990,0.2672347,91647.0,91646.0,0.00027279]
[1763631989588,0.0023147,91647.0,91646.0,0.73945033]
[1763631989891,0.2672347,91647.0,91646.0,0.73945033]
[1763631990094,0.2672347,91647.0,91646.0,0.60938033]
[1763631990284,0.7239147,91647.0,91646.0,0.73945033]
[1763631990486,0.0023147,91647.0,91646.0,0.73945033]
[1763631990685,0.7239147,91647.0,91646.0,0.73945033]
[1763631991193,0.9888347,91647.0,91646.0,0.73945033]
[1763631992090,0.7239147,91647.0,91646.0,0.73945033]
[1763631992295,1.0025147,91647.0,91646.0,0.76852033]
[1763631992495,0.7239147,91647.0,91646.0,0.76852033]
[1763631995396,1.0025147,91647.0,91646.0,0.47931033]
[1763631996691,1.0025147,91647.0,91646.0,0.76852033]
[1763631997291,1.0025147,91647.0,91646.0,0.47931033]
[1763631998195,1.0025147,91647.0,91646.0,0.01778212]
[1763631998688,1.0025147,91647.0,91645.0,0.00013962]
[1763631998689,0.2786,91646.0,91645.0,0.00013962]
[1763631998886,0.28079803,91646.0,91645.0,0.00013962]
[1763631999289,0.28079803,91646.0,91645.0,0.15311962]
[1763631999596,0.38687803,91646.0,91645.0,0.15311962]
[1763632000096,0.38687803,91646.0,91645.0,0.15411962]
[1763632000292,0.4217213,91646.0,91645.0,0.15411962]
[1763632000596,0.1431613,91646.0,91645.0,0.29034962]
[1763632000996,0.00219803,91646.0,91645.0,0.29034962]
[1763632001193,0.03687458,91646.0,91645.0,0.29034962]
[1763632001391,0.00219803,91646.0,91645.0,0.29034962]
[1763632001696,0.00219803,91646.0,91645.0,0.30813174]
[1763632002094,0.31503242,91646.0,91645.0,0.01892174]
[1763632002289,0.31503242,91646.0,91645.0,0.04892174]
[1763632002997,0.42115242,91646.0,91645.0,0.04892174]
[1763632004090,0.31503242,91646.0,91645.0,0.04892174]
[1763632004290,0.42115242,91646.0,91645.0,0.04892174]
[1763632004996,0.42115242,91646.0,91645.0,0.03113962]
[1763632005798,0.2786,91620.0,91619.0,0.37479]
[1763632006003,0.72379803,91620.0,91619.0,0.39257212]
[1763632006392,0.86861803,91620.0,91619.0,0.39257212]
[1763632006590,0.72379803,91620.0,91619.0,0.39257212]
[1763632006786,0.72388335,91620.0,91619.0,0.39257212]
[1763632007388,0.86870335,91620.0,91619.0,0.39257212]
[1763632007994,1.00248335,91620.0,91619.0,0.01778212]
[1763632008192,1.00248335,91620.0,91606.0,0.28948291]
[1763632008193,0.14482,91607.0,91606.0,0.28948291]
[1763632008393,0.28079803,91607.0,91606.0,0.15325291]
[1763632008703,0.28079803,91607.0,91606.0,0.00027291]
[1763632008902,1.00239803,91607.0,91606.0,0.00027291]
[1763632009106,0.2786,91596.0,91576.0,0.3608]
[1763632009402,0.2786,91596.0,91586.0,0.23856]
[1763632009403,0.2786,91587.0,91586.0,0.23856]
[1763632009591,0.03578613,91587.0,91586.0,0.37479]
[1763632010101,0.00012922,91595.0,91594.0,0.28921]
[1763632010304,0.00232725,91595.0,91594.0,0.28921]
[1763632010503,0.00232725,91595.0,91566.0,0.00027303]
[1763632010504,0.046,91586.0,91566.0,0.00027303]
[1763632010798,0.03591622,91595.0,91578.0,0.28921]
[1763632010799,0.00219803,91579.0,91578.0,0.28921]
[1763632010998,0.00219803,91579.0,91566.0,0.00027303]
[1763632011307,0.31218803,91578.0,91577.0,0.15298]
[1763632011511,0.31438606,91578.0,91577.0,0.28921]
[1763632011802,0.31438606,91578.0,91566.0,0.00027303]
[1763632011803,0.2786,91567.0,91566.0,0.00027303]
[1763632012002,0.03578606,91567.0,91566.0,0.28948303]
[1763632012200,0.00013415,91578.0,91577.0,0.28921]
[1763632012394,0.03526505,91578.0,91577.0,0.28921]
[1763632013399,0.00953762,91578.0,91577.0,0.28921]
[1763632013608,0.00016382,91587.0,91586.0,0.28921]
[1763632014105,0.14718185,91587.0,91586.0,0.28921]
[1763632014301,0.00236185,91587.0,91586.0,0.28921]
[1763632014502,0.72410349,91587.0,91586.0,0.28921]
[1763632016910,0.86892349,91587.0,91586.0,0.28921]
[1763632017309,0.72410349,91587.0,91586.0,0.28921]
[1763632017707,0.72190546,91587.0,91586.0,0.28921]
[1763632018206,0.12059714,91587.0,91586.0,0.28921]
[1763632018411,0.3608,91601.0,91600.0,0.28921]
[1763632018604,0.36299803,91601.0,91600.0,0.28921]
[1763632019310,0.36307905,91601.0,91600.0,0.28921]
[1763632019607,0.64167905,91601.0,91591.0,0.00016382]
[1763632019801,0.6394,91592.0,91591.0,0.28937382]
[1763632020002,0.64159803,91592.0,91591.0,0.28937382]
[1763632020815,0.36299803,91592.0,91591.0,0.28937382]
[1763632021112,0.36399803,91592.0,91591.0,0.28937382]
[1763632021610,0.3618,91592.0,91591.0,0.28937382]
[1763632022511,0.36399803,91592.0,91591.0,0.28937382]
[1763632022708,0.65700803,91592.0,91591.0,0.00016382]
[1763632023106,0.3618,91592.0,91591.0,0.30178382]
[1763632023305,0.00108102,91601.0,91600.0,0.4108919]
[1763632023807,0.35251682,91601.0,91600.0,0.4108919]
[1763632024004,0.3608,91612.0,91609.0,0.4108811]
[1763632024612,0.00236185,91610.0,91609.0,0.4108811]
[1763632027510,0.00236185,91610.0,91609.0,0.4118811]
[1763632028516,0.00016382,91610.0,91609.0,0.4118811]
[1763632032914,0.75448,91630.0,91629.0,0.4108573]
[1763632033119,0.75667803,91630.0,91629.0,0.4108573]
[1763632033619,0.15376,91621.0,91620.0,0.56802871]
[1763632033820,0.39368,91620.0,91619.0,0.1092492]
[1763632034122,0.39587803,91620.0,91619.0,0.1092492]
[1763632034519,0.39587803,91620.0,91619.0,0.2662592]
[1763632034721,0.39587803,91620.0,91619.0,0.4108692]
[1763632034917,0.29520803,91620.0,91619.0,0.4108692]
[1763632035115,0.00219803,91620.0,91619.0,0.4118692]
[1763632035314,0.39587803,91620.0,91619.0,0.30262]
[1763632035822,0.00219803,91620.0,91619.0,0.30262]
[1763632037120,0.00219803,91620.0,91619.0,0.30162]
[1763632037318,0.15595803,91620.0,91619.0,0.30262]
[1763632037718,0.15595803,91620.0,91619.0,0.30162]
[1763632037923,0.15595803,91620.0,91619.0,0.30262]
[1763632038431,0.00219803,91620.0,91619.0,0.40914]
[1763632038622,0.65381,91629.0,91628.0,0.4108585]
[1763632038823,0.65600803,91629.0,91628.0,0.4108585]
[1763632039320,0.39335803,91629.0,91628.0,1.02322]
[1763632039521,0.39335803,91629.0,91628.0,0.40802]
[1763632039921,0.39368,91638.0,91637.0,0.15701]
[1763632040125,0.39587803,91638.0,91637.0,0.2662377]
[1763632040320,0.39587803,91638.0,91637.0,0.4108477]
[1763632040521,0.29520803,91638.0,91637.0,0.4108477]
[1763632040721,0.00219803,91638.0,91637.0,0.4108477]
[1763632041021,0.00016372,91647.0,91646.0,0.109217]
[1763632041226,0.29537175,91647.0,91646.0,0.410837]
[1763632042229,0.29537175,91647.0,91646.0,0.411837]
[1763632042421,0.00236175,91647.0,91646.0,0.411837]
[1763632042726,0.00016372,91647.0,91646.0,0.411837]
[1763632042927,0.09815,91656.0,91655.0,0.1092063]
[1763632043123,0.39335803,91656.0,91655.0,0.4108263]
[1763632043318,0.46147,91665.0,91664.0,0.1091956]
[1763632043519,0.75667803,91665.0,91664.0,0.15701]
[1763632044029,0.29301,91664.0,91663.0,0.1091966]
[1763632044225,0.29520803,91664.0,91663.0,0.2662066]
[1763632044731,0.29520803,91664.0,91663.0,0.15701]
[1763632045126,0.29301,91656.0,91655.0,0.00016372]
[1763632045321,0.29520803,91656.0,91655.0,3.72e-06]
[1763632046125,0.15376,91628.0,91627.0,0.4108597]
[1763632046328,0.65381,91644.0,91643.0,0.15701]
[1763632046524,0.65600803,91644.0,91643.0,0.15701]
[1763632046919,0.65600803,91644.0,91643.0,0.30162]
[1763632047127,0.1092206,91643.0,91635.0,0.30162]
[1763632047427,0.36299803,91636.0,91635.0,0.30162]
[1763632047819,0.3608,91636.0,91635.0,0.30162]
[1763632048226,0.36299803,91636.0,91635.0,0.30162]
[1763632048630,0.36299803,91636.0,91635.0,0.30262]
[1763632048927,0.36299803,91636.0,91635.0,0.001]